lending/lending_fUSD_20240512
["ID","MTS","AMOUNT","RATE_DAILY","PERIOD"]
[326844451,1715509844151,-884846.11066171,0.0001298,2]
[326844472,1715509845658,-218.05512287,0.00012978,2]
[326844473,1715509845667,-845.33925905,0.00012979,2]
[326844474,1715509845677,-152000.32441323,0.0001298,2]
[326844475,1715509845689,-858.72191135,0.0001298,2]
[326844476,1715509845700,-498.40910865,0.0001298,2]
[326844477,1715509845712,-368.43743977,0.0001298,2]
[326844478,1715509845796,-155.0,0.00012978,2]
[326844479,1715509845806,-191.30032205,0.00012978,2]
[326844480,1715509845819,-507.30573655,0.00012978,2]
[326844481,1715509845830,-1135.29151915,0.00012978,2]
[326844482,1715509845843,-1082.23486945,0.00012978,2]
[326844483,1715509845853,-17371.26600941,0.0001298,2]
[326844484,1715509845864,-16989.91276986,0.0001298,2]
[326844485,1715509845928,-1601.22821607,0.0001298,2]
[326844486,1715509845939,-3068.8818746,0.0001298,2]
[326844487,1715509845951,-2654.17372556,0.0001298,2]
[326844488,1715509845962,-569.69428986,0.0001298,2]
[326844489,1715509845973,-1351.41252935,0.0001298,2]
[326844490,1715509845985,-30581.5,0.0001298,2]
[326844491,1715509845997,-494.17574675,0.0001298,2]
[326851560,1715510221921,560.95529532,0.00012,30]
[326851563,1715510374115,-882.73292549,8.992e-05,2]
[326851564,1715510374137,-155.0,8.993e-05,2]
[326851565,1715510374160,-2916.1324472,8.994e-05,2]
[326851566,1715510374181,-46.13462731,8.996e-05,2]
[326851567,1715510374694,-4000.0,8.996e-05,2]
[326851568,1715510383768,-155.0,8.992e-05,2]
[326851569,1715510383793,-3845.0,8.996e-05,2]
[326851640,1715511032306,-540.45459162,8.94e-05,2]
[326851642,1715511032315,-535.28534802,8.941e-05,2]
[326851643,1715511032324,-882.73292549,8.942e-05,2]
[326851644,1715511032333,-522.95913528,8.942e-05,2]
[326851645,1715511032342,-155.0,8.943e-05,2]
[326851646,1715511032351,-320.0,8.943e-05,2]
[326851647,1715511032360,-584.15909771,8.955e-05,2]
[326851648,1715511032370,-150.0,8.955e-05,2]
[326851649,1715511032382,-150.0,8.959e-05,2]
[326851650,1715511032391,-79.1730101,8.989e-05,2]
[326851651,1715511032500,-259.1,8.989e-05,2]
[326851652,1715511032511,-13216.89711142,8.989e-05,2]
[326851654,1715511032562,-838.296,8.989e-05,2]
[326851656,1715511032573,-287.37338502,8.989e-05,2]
[326851663,1715511037827,-300.001004,8.989e-05,2]
[326851666,1715511037840,-20354.87124066,8.989e-05,2]
[326851669,1715511037849,-6375.93537093,8.99e-05,2]
[326851670,1715511037858,-1343.22318309,8.992e-05,2]
[326851671,1715511037867,-605.40552838,8.994e-05,2]
[326851672,1715511037877,-782.62056695,8.994e-05,2]
[326851673,1715511037887,-155.0,8.994e-05,2]
[326851674,1715511037896,-2029.81619606,8.994e-05,2]
[326851675,1715511037905,-1110.95201386,8.995e-05,2]
[326851676,1715511037914,-345.755284,8.996e-05,2]
[326851677,1715511037923,-205990.87090213,8.996e-05,2]
[326851678,1715511037932,-900.0,9e-05,2]
[326851679,1715511037942,-181.63829139,9e-05,2]
[326851680,1715511037951,-499.99,9.67e-05,2]
[326851681,1715511037961,-352.51,9.67e-05,2]
[326851682,1715511037971,-23900.0,9.684e-05,2]
[326851683,1715511037981,-2384.19,9.726e-05,2]
[326851684,1715511037990,-250.0,0.0001,2]
[326851685,1715511037999,-250.0,0.00010135,2]
[326851686,1715511038008,-4346.24,0.00010278,2]
[326851687,1715511038017,-646.4,0.00010394,2]
[326851688,1715511038026,-150.0,0.00010959,2]
[326851689,1715511038035,-4000.0,0.00011457,3]
[326851690,1715511038044,-500.0,0.00011469,2]
[326851691,1715511038053,-181.59,0.00011518,2]
[326851692,1715511038062,-315.6,0.00011526,2]
[326851693,1715511038071,-200.0,0.00011661,2]
[326851694,1715511038080,-390.5,0.00011682,2]
[326851695,1715511038089,-646.4,0.00011693,2]
[326851696,1715511038098,-353.6,0.00011735,2]
[326851697,1715511038107,-170.91,0.00011865,2]
[326851698,1715511038116,-300.0,0.000119,4]
[326851699,1715511038126,-155.0,0.00012,2]
[326851700,1715511038135,-700.0,0.00012,4]
[326851701,1715511038144,-868.75,0.00012055,2]
[326851702,1715511038153,-831.98,0.00012055,2]
[326851703,1715511038162,-1100.0,0.000121,4]
[326851704,1715511038171,-1500.0,0.000122,4]
[326851705,1715511038182,-868.75,0.00012241,2]
[326851706,1715511038191,-1394.63,0.000123,2]
[326851707,1715511038200,-1800.0,0.000123,4]
[326851708,1715511038209,-1136.92665667,0.00012329,2]
[326851709,1715511038218,-300.0,0.000124,4]
[326851710,1715511038228,-2384.19,0.00012465,2]
[326851711,1715511038237,-150.0,0.00012493,2]
[326851712,1715511038246,-523.5,0.00012493,2]
[326851713,1715511038255,-420.31,0.00012493,2]
[326851714,1715511038264,-150.0,0.00012493,2]
[326851715,1715511038273,-523.5,0.00012493,2]
[326851716,1715511038283,-420.31,0.00012493,2]
[326851717,1715511038292,-300.0,0.000125,4]
[326851718,1715511038301,-12645.13966873,0.000125,2]
[326851719,1715511038310,-300.0,0.000126,4]
[326851720,1715511038319,-3499.67939162,0.00012622,2]
[326851721,1715511038327,-300.0,0.000127,4]
[326851722,1715511038336,-1000.0,0.000127,2]
[326851723,1715511038345,-868.75,0.00012741,2]
[326851724,1715511038354,-921.0,0.000128,4]
[326851725,1715511038364,-868.75,0.00012841,2]
[326851726,1715511038372,-868.75,0.00012841,2]
[326851727,1715511038383,-175.63691096,0.0001285,2]
[326851728,1715511038392,-1563.06983317,0.00012875,2]
[326851729,1715511038401,-372.34169745,0.00012878,2]
[326851730,1715511038410,-523.5,0.00012878,2]
[326851731,1715511038419,-420.31,0.00012878,2]
[326851732,1715511038428,-150.0,0.00012878,2]
[326851733,1715511038437,-1000.0,0.0001288,2]
[326851734,1715511038446,-2205.60505016,0.0001288,2]
[326851735,1715511038455,-173.54433881,0.0001288,2]
[326851736,1715511038464,-172.54228539,0.0001288,2]
[326851737,1715511038473,-372.34169745,0.0001288,2]
[326851738,1715511038482,-193.87795131,0.0001288,2]
[326851739,1715511038492,-2355.00975345,0.0001288,2]
[326851740,1715511038501,-625.05542642,0.0001288,2]
[326851741,1715511038510,-2205.60505011,0.00012882,2]
[326851742,1715511038519,-200.0,0.00012883,2]
[326851743,1715511038765,-2205.60505011,0.00012884,2]
[326851744,1715511038793,-2205.60505011,0.00012885,2]
[326851745,1715511038803,-200.0,0.00012886,2]
[326851746,1715511038812,-1000.0,0.00012886,2]
[326851747,1715511038827,-500.0,0.00012886,2]
[326851748,1715511038837,-2205.60505011,0.00012887,2]
[326851749,1715511038849,-2205.60505011,0.00012889,2]
[326851750,1715511038859,-2205.60505011,0.00012891,2]
[326851751,1715511038869,-2205.60505011,0.00012893,2]
[326851752,1715511038878,-2205.60505011,0.00012895,2]
[326851753,1715511038889,-500.0,0.00012895,2]
[326851754,1715511038901,-2205.60505011,0.00012896,2]
[326851755,1715511038910,-2205.60505011,0.00012898,2]
[326851756,1715511038919,-2205.60505011,0.000129,2]
[326851757,1715511038927,-308.27650085,0.000129,2]
[326851758,1715511038936,-181.59,0.00012958,2]
[326851759,1715511038945,-4368.24520142,0.00012966,2]
[326851760,1715511038954,-151.48,0.0001297,2]
[326851761,1715511038963,-1786.29309312,0.00012977,2]
[326851762,1715511038972,-229.12390631,0.00012978,2]
[326851763,1715511038982,-218.41440426,0.00012978,2]
[326851764,1715511038990,-672.59646107,0.00012978,2]
[326851765,1715511038999,-263.45763516,0.00012978,2]
[326851766,1715511039009,-206.344491,0.00012978,2]
[326851767,1715511039019,-429.89465358,0.00012978,2]
[326851768,1715511039028,-158.65016909,0.00012978,2]
[326851769,1715511039037,-265.97975764,0.00012978,2]
[326851770,1715511039047,-317.27575734,0.00012978,2]
[326851771,1715511039056,-155.91324332,0.00012978,2]
[326851772,1715511039065,-5539.88580712,0.00012978,2]
[326851773,1715511039075,-540.47988677,0.00012978,2]
[326851774,1715511039084,-528.24751457,0.00012978,2]
[326851775,1715511039093,-155.07331885,0.00012978,2]
[326851776,1715511039103,-39352.09980797,0.00012978,2]
[326851777,1715511039112,-155.12551674,0.00012978,2]
[326851778,1715511039122,-709.08979264,0.00012978,2]
[326851779,1715511039131,-155.0,0.00012978,2]
[326851780,1715511039141,-523.5,0.00012978,2]
[326851781,1715511039150,-420.31,0.00012978,2]
[326851782,1715511039160,-150.0,0.00012978,2]
[326851783,1715511039169,-195.2,0.00012978,2]
[326851784,1715511039178,-221.09,0.00012978,2]
[326851785,1715511039189,-150.0,0.00012978,2]
[326851786,1715511039198,-523.5,0.00012978,2]
[326851787,1715511039207,-420.31,0.00012978,2]
[326851788,1715511039216,-263.74022402,0.00012979,2]
[326851789,1715511039225,-300.02,0.00012979,2]
[326851790,1715511039234,-1009.71078164,0.00012979,2]
[326851791,1715511039243,-222.22025165,0.00012979,3]
[326851792,1715511039252,-49037.55821368,0.0001298,2]
[326851793,1715511039303,-814489.8799971,0.0001298,2]
[326851794,1715511039314,-3870.70398005,0.0001298,2]
[326851795,1715511039373,-19843.16857966,0.0001298,2]
[326851796,1715511039385,-6696.33970444,0.0001298,2]
[326851797,1715511039396,-6453.29880336,0.0001298,2]
[326851798,1715511039445,-496.816951,0.0001298,2]
[326851806,1715511040238,-3501.22698758,0.0001298,2]
[326851807,1715511040309,-346.96360074,0.0001298,2]
[326851808,1715511040414,-24590.91387308,0.0001298,2]
[326851809,1715511040425,-3582.95899855,0.0001298,2]
[326851810,1715511040473,-1109.71027774,0.0001298,2]
[326851811,1715511040485,-16002.17169471,0.0001298,2]
[326851916,1715511045894,-332.55378153,0.00011441,2]
[326851917,1715511046036,-454.88657913,0.00011441,2]
[326851974,1715511470237,-1000.0,0.00018889,20]
[326851979,1715511869797,-155.0,8.989e-05,2]
[326851980,1715511869823,-882.73292549,8.99e-05,2]
[326851981,1715511869852,-349.90094581,8.996e-05,2]
[326852003,1715512232133,-155.0,0.00011689,2]
[326852004,1715512232143,-385.239408,0.0001169,2]
[326852005,1715512232154,-497.49351749,0.0001169,2]
[326852006,1715512232165,-10019.6839,0.00011691,2]
[326852007,1715512232175,-250.0,0.00011715,2]
[326852008,1715512232185,-164.06184753,0.00011792,2]
[326852009,1715512232195,-4000.0,0.00011832,3]
[326852010,1715512232205,-170.91,0.00011842,2]
[326852011,1715512232214,-250.0,0.00011842,2]
[326852012,1715512232223,-387.84,0.00011891,2]
[326852013,1715512232232,-794.05,0.00011905,2]
[326852014,1715512232242,-22213.48,0.00011905,2]
[326852015,1715512232252,-155.0,0.00012209,2]
[326852016,1715512232261,-164.06184751,0.00012286,2]
[326852017,1715512232271,-499.99,0.00012286,2]
[326852018,1715512232281,-420.31,0.000123,2]
[326852019,1715512232291,-150.0,0.000123,2]
[326852020,1715512232301,-523.5,0.00012378,2]
[326852021,1715512232310,-420.31,0.00012378,2]
[326852022,1715512232320,-300.0,0.00012378,2]
[326852023,1715512232329,-420.31,0.00012378,2]
[326852024,1715512232338,-840.62,0.000124,2]
[326852025,1715512232348,-523.5,0.000124,2]
[326852026,1715512232357,-195.2,0.000124,2]
[326852027,1715512232366,-150.0,0.000124,2]
[326852028,1715512232376,-221.09,0.000124,2]
[326852029,1715512232385,-150.0,0.000124,2]
[326852030,1715512232394,-420.31,0.000124,2]
[326852031,1715512232404,-150.0,0.000124,2]
[326852032,1715512232413,-12645.13966873,0.000125,2]
[326852033,1715512232423,-420.31,0.000125,2]
[326852034,1715512232432,-420.31,0.000125,2]
[326852035,1715512232441,-420.31,0.000125,2]
[326852036,1715512232450,-274.2,0.000125,2]
[326852037,1715512232460,-553.23885907,0.00012561,2]
[326852038,1715512232469,-182.0,0.00012563,2]
[326852039,1715512232478,-420.31,0.00012578,2]
[326852040,1715512232488,-1022.76,0.00012578,2]
[326852041,1715512232497,-150.0,0.00012578,2]
[326852042,1715512232506,-420.31,0.000126,2]
[326852043,1715512232521,-301.79,0.000126,2]
[326852044,1715512232530,-643.85829752,0.00012672,2]
[326852045,1715512232540,-4241.2065,0.0001278,2]
[326852046,1715512232550,-164.06184751,0.0001278,2]
[326852047,1715512232559,-2500.0,0.0001278,2]
[326852048,1715512232569,-279.01863078,0.0001287,2]
[326852049,1715512232578,-168.77,0.0001287,2]
[326852050,1715512232587,-200.0,0.00012876,2]
[326852051,1715512232599,-420.31,0.00012878,2]
[326852052,1715512232610,-523.5,0.00012878,2]
[326852053,1715512232619,-150.0,0.00012878,2]
[326852054,1715512232629,-500.0,0.00012879,2]
[326852055,1715512232640,-283.61053986,0.00012879,2]
[326852057,1715512232649,-372.34169745,0.00012879,2]
[326852059,1715512232658,-1000.0,0.0001288,2]
[326852061,1715512232667,-1000.0,0.0001288,2]
[326852063,1715512232677,-2721.9542,0.0001288,2]
[326852064,1715512232685,-6787.446,0.0001288,2]
[326852065,1715512232694,-245000.0,0.0001288,2]
[326852066,1715512232703,-32055.7929,0.0001288,2]
[326852067,1715512232712,-11037.29371076,0.0001288,2]
[326852068,1715512232722,-173.54433881,0.0001288,2]
[326852069,1715512232731,-168.77,0.00012969,2]
[326852070,1715512232739,-168.77,0.00012969,2]
[326852071,1715512232748,-168.77,0.00012969,2]
[326852072,1715512232758,-168.77,0.00012969,2]
[326852073,1715512232766,-168.77,0.00012969,2]
[326852074,1715512232775,-166.78278404,0.00012969,2]
[326852075,1715512232784,-168.77,0.00012969,2]
[326852076,1715512232793,-168.77,0.00012969,2]
[326852077,1715512232802,-168.77,0.00012969,2]
[326852078,1715512232811,-168.77,0.00012969,2]
[326852079,1715512232820,-223.54477722,0.00012977,2]
[326852080,1715512232829,-535.18687779,0.00012978,2]
[326852081,1715512232838,-450.09777938,0.00012978,2]
[326852082,1715512232847,-522.66900323,0.00012978,2]
[326852083,1715512232856,-292.47865318,0.00012978,2]
[326852084,1715512232865,-155.0,0.00012978,2]
[326852085,1715512232874,-263.74022402,0.00012978,2]
[326852086,1715512232884,-526.33997987,0.00012978,2]
[326852087,1715512232894,-1213.08546547,0.00012978,2]
[326852088,1715512232903,-1047.24381892,0.00012978,2]
[326852089,1715512232912,-500.0,0.00012978,2]
[326852090,1715512232921,-500.0,0.00012978,3]
[326852091,1715512232930,-500.0,0.00012978,4]
[326852092,1715512232939,-500.0,0.00012978,5]
[326852093,1715512232948,-500.0,0.00012978,6]
[326852094,1715512232957,-500.0,0.00012978,7]
[326852095,1715512232968,-500.0,0.00012978,8]
[326852096,1715512232977,-500.0,0.00012978,9]
[326852097,1715512232989,-500.0,0.00012978,10]
[326852098,1715512232999,-500.0,0.00012978,11]
[326852099,1715512233009,-525.93257493,0.00012978,12]
[326852100,1715512233018,-1884.42,0.00012978,2]
[326852101,1715512233028,-1884.42,0.00012978,3]
[326852102,1715512233037,-1884.42,0.00012978,4]
[326852103,1715512233046,-1884.42,0.00012978,5]
[326852104,1715512233055,-1884.42,0.00012978,6]
[326852105,1715512233064,-1884.42,0.00012978,7]
[326852106,1715512233073,-1884.42,0.00012978,8]
[326852107,1715512233082,-1884.42,0.00012978,9]
[326852108,1715512233091,-1884.42,0.00012978,10]
[326852109,1715512233100,-1884.42,0.00012978,11]
[326852110,1715512233109,-1884.42,0.00012978,12]
[326852111,1715512233118,-1884.42,0.00012978,13]
[326852112,1715512233127,-1884.42,0.00012978,14]
[326852113,1715512233138,-1884.42,0.00012978,15]
[326852114,1715512233147,-1884.42,0.00012978,16]
[326852115,1715512233156,-1884.42,0.00012978,17]
[326852116,1715512233165,-1884.42,0.00012978,18]
[326852117,1715512233175,-3187.16,0.00012978,2]
[326852118,1715512233184,-3187.16,0.00012978,3]
[326852119,1715512233193,-3187.16,0.00012978,4]
[326852120,1715512233202,-3187.16,0.00012978,5]
[326852121,1715512233211,-3187.16,0.00012978,6]
[326852122,1715512233220,-3187.16,0.00012978,7]
[326852123,1715512233229,-3187.16,0.00012978,8]
[326852124,1715512233238,-3187.16,0.00012978,9]
[326852125,1715512233247,-3187.16,0.00012978,10]
[326852126,1715512233257,-3187.16,0.00012978,11]
[326852127,1715512233266,-3187.16,0.00012978,12]
[326852128,1715512233275,-3187.16,0.00012978,13]
[326852129,1715512233284,-3187.16,0.00012978,14]
[326852130,1715512233293,-3187.16,0.00012978,15]
[326852131,1715512233302,-3187.16,0.00012978,16]
[326852132,1715512233311,-3187.16,0.00012978,17]
[326852133,1715512233321,-3187.16,0.00012978,18]
[326852134,1715512233330,-3187.16,0.00012978,19]
[326852135,1715512233339,-3187.16,0.00012978,20]
[326852136,1715512233349,-3187.16,0.00012978,21]
[326852137,1715512233359,-3187.16,0.00012978,21]
[326852138,1715512233368,-3187.16,0.00012978,21]
[326852139,1715512233378,-1884.42,0.00012978,19]
[326852140,1715512233389,-3187.16,0.00012978,21]
[326852141,1715512233401,-6144.6918111,0.00012979,2]
[326852142,1715512233411,-300.02,0.00012979,2]
[326852143,1715512233421,-1350.10635129,0.00012979,2]
[326852144,1715512233431,-500.0,0.00012979,2]
[326852145,1715512233441,-500.0,0.00012979,3]
[326852146,1715512233451,-500.0,0.00012979,2]
[326852147,1715512233460,-500.0,0.00012979,4]
[326852148,1715512233470,-346.3181278,0.00012979,2]
[326852149,1715512233479,-500.0,0.00012979,3]
[326852150,1715512233488,-500.0,0.00012979,5]
[326852151,1715512233497,-500.0,0.00012979,2]
[326852152,1715512233507,-533.67332727,0.00012979,6]
[326852153,1715512233520,-500.0,0.00012979,4]
[326852154,1715512233529,-500.0,0.00012979,3]
[326852155,1715512233538,-500.0,0.00012979,4]
[326852156,1715512233548,-500.0,0.00012979,5]
[326852157,1715512233558,-500.0,0.00012979,6]
[326852158,1715512233567,-500.0,0.00012979,2]
[326852159,1715512233577,-513.00327243,0.00012979,2]
[326852160,1715512233586,-500.0,0.00012979,7]
[326852161,1715512233598,-500.0,0.00012979,2]
[326852162,1715512233608,-500.0,0.00012979,3]
[326852163,1715512233617,-500.0,0.00012979,8]
[326852164,1715512233627,-500.0,0.00012979,3]
[326852165,1715512233637,-6730.1,0.00012979,2]
[326852166,1715512233647,-8294.82,0.00012979,2]
[326852167,1715512233657,-501.23751725,0.00012979,4]
[326852168,1715512233666,-500.0,0.00012979,9]
[326852169,1715512233675,-500.0,0.00012979,2]
[326852170,1715512233685,-500.0,0.00012979,4]
[326852171,1715512233694,-6730.1,0.00012979,3]
[326852172,1715512233703,-8294.82,0.00012979,3]
[326852173,1715512233712,-354.92395827,0.00012979,2]
[326852174,1715512233721,-500.0,0.00012979,10]
[326852175,1715512233730,-553.60378137,0.00012979,5]
[326852176,1715512233739,-500.0,0.00012979,3]
[326852177,1715512233748,-8294.82,0.00012979,4]
[326852178,1715512233758,-6730.1,0.00012979,4]
[326852179,1715512233767,-500.0,0.00012979,4]
[326852180,1715512233776,-500.0,0.00012979,11]
[326852181,1715512233786,-8294.82,0.00012979,5]
[326852182,1715512233795,-6730.1,0.00012979,5]
[326852183,1715512233804,-500.0,0.00012979,12]
[326852184,1715512233813,-8294.82,0.00012979,6]
[326852185,1715512233822,-6730.1,0.00012979,6]
[326852186,1715512233831,-500.0,0.00012979,13]
[326852187,1715512233840,-8294.82,0.00012979,7]
[326852188,1715512233850,-500.0,0.00012979,5]
[326852189,1715512233859,-6730.1,0.00012979,7]
[326852190,1715512233868,-500.0,0.00012979,2]
[326852191,1715512233877,-500.0,0.00012979,14]
[326852192,1715512233888,-259.03558196,0.00012979,6]
[326852193,1715512233897,-500.0,0.00012979,3]
[326852194,1715512233906,-6730.1,0.00012979,8]
[326852195,1715512233916,-500.0,0.00012979,15]
[326852196,1715512233925,-8294.82,0.00012979,8]
[326852197,1715512233934,-543.19905561,0.00012979,4]
[326852198,1715512233943,-6730.1,0.00012979,9]
[326852199,1715512233953,-500.0,0.00012979,16]
[326852200,1715512233963,-500.0,0.00012979,2]
[326852201,1715512233972,-8294.82,0.00012979,9]
[326852202,1715512233981,-6730.1,0.00012979,10]
[326852203,1715512233991,-500.0,0.00012979,17]
[326852204,1715512234000,-516.78533334,0.00012979,3]
[326852205,1715512234009,-1842.33,0.00012979,2]
[326852206,1715512234019,-8294.82,0.00012979,10]
[326852207,1715512234028,-500.0,0.00012979,18]
[326852208,1715512234037,-1842.33,0.00012979,3]
[326852209,1715512234046,-8294.82,0.00012979,11]
[326852210,1715512234055,-500.0,0.00012979,19]
[326852211,1715512234064,-3534.90363211,0.00012979,11]
[326852212,1715512234107,-267.23393513,0.00012979,11]
[326852213,1715512234118,-2830.81333258,0.00012979,11]
[326852214,1715512234129,-97.14910018,0.00012979,11]
[326852215,1715512234139,-443.7326138,0.00012979,2]
[326852216,1715512234150,-56.2673862,0.00012979,2]
[326852217,1715512234159,-1842.33,0.00012979,4]
[326852218,1715512234169,-8294.82,0.00012979,12]
[326852219,1715512234178,-500.0,0.00012979,20]
[326852220,1715512234187,-500.0,0.00012979,3]
[326852221,1715512234196,-6730.1,0.00012979,12]
[326852222,1715512234206,-8294.82,0.00012979,13]
[326852223,1715512234215,-500.0,0.00012979,21]
[326852224,1715512234224,-522.23165501,0.00012979,4]
[326852225,1715512234234,-6730.1,0.00012979,13]
[326852226,1715512234243,-1842.33,0.00012979,5]
[326852227,1715512234252,-8294.82,0.00012979,14]
[326852228,1715512234261,-500.0,0.00012979,21]
[326852229,1715512234271,-6730.1,0.00012979,14]
[326852230,1715512234281,-1842.33,0.00012979,6]
[326852231,1715512234291,-500.0,0.00012979,21]
[326852232,1715512234300,-8294.82,0.00012979,15]
[326852233,1715512234310,-6730.1,0.00012979,15]
[326852234,1715512234319,-271.38696592,0.00012979,21]
[326852235,1715512234329,-8294.82,0.00012979,16]
[326852236,1715512234339,-6730.1,0.00012979,16]
[326852237,1715512234348,-1842.33,0.00012979,7]
[326852238,1715512234357,-8294.82,0.00012979,17]
[326852239,1715512234367,-1842.33,0.00012979,8]
[326852240,1715512234376,-6730.1,0.00012979,17]
[326852241,1715512234386,-8294.82,0.00012979,18]
[326852242,1715512234396,-2213.84,0.00012979,2]
[326852243,1715512234405,-1842.33,0.00012979,9]
[326852244,1715512234415,-6730.1,0.00012979,18]
[326852245,1715512234425,-2213.84,0.00012979,3]
[326852246,1715512234434,-4846.91541139,0.00012979,19]
[326852247,1715512234459,-2285.28828624,0.00012979,19]
[326852248,1715512234527,-1275.96592108,0.00012978,20]
[326852249,1715512234577,-608.45407892,0.00012978,20]
[326852250,1715512234587,-1162.61630237,0.00012979,19]
[326852251,1715512234598,-1842.33,0.00012979,10]
[326852252,1715512234609,-6730.1,0.00012979,19]
[326852253,1715512234618,-2213.84,0.00012979,4]
[326852254,1715512234628,-827.32295767,0.00012979,2]
[326852255,1715512234642,-645.60729713,0.00012979,2]
[326852256,1715512234653,-2880.36659732,0.00012979,2]
[326852257,1715512234666,-1320.12980124,0.00012979,2]
[326852258,1715512234680,-4504.56509516,0.00012979,2]
[326852259,1715512234839,-3187.33517638,0.00012978,21]
[326852260,1715512234848,-1884.42,0.00012978,21]
[326852261,1715512234858,-6462.85134193,0.00012979,2]
[326852262,1715512234869,-1070.4258427,0.00012979,2]
[326852266,1715512238104,-612.16,0.00012021,2]
[326852267,1715512238114,-1884.42,0.00012978,21]
[326852268,1715512238124,-981.84757392,0.00012978,21]
[326852269,1715512238135,-885.30001992,0.00012978,21]
[326852270,1715512238149,-17.27240616,0.00012978,21]
[326852271,1715512238158,-1884.42,0.00012978,21]
[326852272,1715512238166,-1884.4567029,0.00012978,21]
[326852273,1715512238176,-2938.87,0.00012978,2]
[326852274,1715512238185,-2938.87,0.00012978,3]
[326852275,1715512238194,-2938.87,0.00012978,4]
[326852276,1715512238204,-2938.87,0.00012978,5]
[326852277,1715512238213,-2938.87,0.00012978,6]
[326852278,1715512238223,-2938.87,0.00012978,7]
[326852279,1715512238233,-2938.87,0.00012978,8]
[326852280,1715512238242,-2938.87,0.00012978,9]
[326852281,1715512238253,-500.0,0.00012978,2]
[326852282,1715512238263,-2938.87,0.00012978,10]
[326852283,1715512238273,-500.0,0.00012978,2]
[326852284,1715512238282,-690.57,0.00012978,2]
[326852285,1715512238291,-2938.87,0.00012978,11]
[326852286,1715512238300,-500.0,0.00012978,2]
[326852287,1715512238309,-690.57,0.00012978,3]
[326852288,1715512238319,-2938.87,0.00012978,12]
[326852289,1715512238328,-19114.05710954,0.00012979,2]
[326852290,1715512238339,-18412.93295667,0.00012979,2]
[326852291,1715512238349,-2749.02,0.00012979,2]
[326852292,1715512238358,-547.59,0.00012979,2]
[326852293,1715512238367,-8294.82,0.00012979,20]
[326852294,1715512238380,-1842.33,0.00012979,11]
[326852295,1715512238389,-500.0,0.00012979,2]
[326852296,1715512238399,-500.0,0.00012979,2]
[326852297,1715512238408,-6730.1,0.00012979,20]
[326852298,1715512238417,-2213.84,0.00012979,5]
[326852299,1715512238425,-2749.02,0.00012979,3]
[326852300,1715512238434,-8294.82,0.00012979,21]
[326852301,1715512238443,-547.59,0.00012979,3]
[326852302,1715512238452,-1842.33,0.00012979,12]
[326852303,1715512238462,-500.0,0.00012979,3]
[326852304,1715512238471,-6730.1,0.00012979,21]
[326852305,1715512238480,-526.44987657,0.00012979,3]
[326852306,1715512238489,-2213.84,0.00012979,6]
[326852307,1715512238499,-8294.82,0.00012979,21]
[326852308,1715512238507,-2749.02,0.00012979,4]
[326852309,1715512238521,-1842.33,0.00012979,13]
[326852310,1715512238531,-508.61042301,0.00012979,4]
[326852311,1715512238540,-6730.1,0.00012979,21]
[326852312,1715512238550,-2213.84,0.00012979,7]
[326852313,1715512238559,-1842.33,0.00012979,14]
[326852314,1715512238568,-8294.82,0.00012979,21]
[326852315,1715512238578,-2749.02,0.00012979,5]
[326852316,1715512238587,-547.59,0.00012979,4]
[326852317,1715512238599,-6730.1,0.00012979,21]
[326852318,1715512238609,-2213.84,0.00012979,8]
[326852319,1715512238618,-1842.33,0.00012979,15]
[326852320,1715512238627,-547.59,0.00012979,5]
[326852321,1715512238636,-8294.82,0.00012979,21]
[326852322,1715512238646,-2749.02,0.00012979,6]